fUSD/lending_fUSD_20250324
["ID","MTS","AMOUNT","RATE_DAILY","PERIOD"]
[356620470,1742845167845,-5519.53,0.00046575,120]
[356620471,1742845167871,-5519.53,0.00046575,120]
[356620472,1742845167897,-500.0,0.00046575,120]
[356620473,1742845167922,-5519.53,0.00046575,120]
[356620474,1742845167949,-500.0,0.00046575,120]
[356620475,1742845167977,-5519.53,0.00046575,120]
[356620476,1742845168003,-480.90655517,0.00046575,120]
[356620477,1742845168029,-5519.53,0.00046575,120]
[356620478,1742845168056,-506.71251891,0.00046575,120]
[356620479,1742845168083,-5519.53,0.00046575,120]
[356620480,1742845168109,-5519.53,0.00046575,120]
[356620481,1742845168135,-5519.53,0.00046575,120]
[356620482,1742845168160,-547.07653645,0.00046575,120]
[356620483,1742845168187,-5519.53,0.00046575,120]
[356620484,1742845168213,-509.67494702,0.00046575,120]
[356620485,1742845168239,-5519.63369321,0.00046575,120]
[356620486,1742845168265,-500.0,0.00046575,120]
[356620487,1742845168290,-707.43,0.00046575,120]
[356620488,1742845168316,-555.05456497,0.00046575,120]
[356620489,1742845168345,-755.05,0.00046575,120]
[356620490,1742845168371,-500.0,0.00046575,120]
[356620491,1742845168397,-552.4028395,0.00046575,120]
[356620492,1742845168423,-544.18649499,0.00046575,120]
[356620493,1742845168449,-500.0,0.00046575,120]
[356620494,1742845168474,-500.0,0.00046575,120]
[356620495,1742845168500,-500.0,0.00046575,60]
[356620496,1742845168525,-510.38479626,0.00046575,120]
[356620497,1742845168551,-500.0,0.00046575,120]
[356620498,1742845168575,-500.0,0.00046575,120]
[356620499,1742845168601,-500.0,0.00046575,120]
[356620500,1742845168625,-510.66295437,0.00046575,120]
[356620501,1742845168650,-500.0,0.00046575,120]
[356620502,1742845168674,-413.60850088,0.00046575,120]
[356620503,1742845168699,-500.0,0.00046575,120]
[356620504,1742845168724,-500.0,0.00046575,120]
[356620505,1742845168750,-500.0,0.00046575,120]
[356620506,1742845168776,-500.0,0.00046575,120]
[356620507,1742845168802,-500.0,0.00046575,120]
[356620508,1742845168827,-783.59,0.00046575,120]
[356620509,1742845168851,-783.59,0.00046575,120]
[356620510,1742845168949,-500.0,0.00046575,120]
[356620511,1742845168976,-500.0,0.00046575,120]
[356620512,1742845169002,-783.59,0.00046575,120]
[356620513,1742845169028,-783.59,0.00046575,120]
[356620514,1742845169054,-783.59,0.00046575,120]
[356620515,1742845169079,-783.59,0.00046575,120]
[356620516,1742845169105,-783.59,0.00046575,120]
[356620517,1742845169130,-783.59,0.00046575,120]
[356620518,1742845169155,-500.0,0.00046575,120]
[356620519,1742845169180,-783.59,0.00046575,120]
[356620520,1742845169204,-783.59,0.00046575,120]
[356620521,1742845169230,-500.0,0.00046575,120]
[356620522,1742845169255,-783.59,0.00046575,120]
[356620523,1742845169280,-783.59,0.00046575,120]
[356620524,1742845169306,-783.59,0.00046575,120]
[356620525,1742845169334,-783.59,0.00046575,120]
[356620526,1742845169359,-783.59,0.00046575,120]
[356620527,1742845169386,-783.59,0.00046575,120]
[356620528,1742845169412,-500.0,0.00046575,120]
[356620529,1742845169438,-783.59,0.00046575,120]
[356620530,1742845169488,-783.59,0.00046575,120]
[356620531,1742845169537,-500.0,0.00046575,120]
[356620532,1742845169588,-783.59,0.00046575,120]
[356620533,1742845169634,-543.30687818,0.00046575,120]
[356620534,1742845169681,-500.0,0.00046575,120]
[356620535,1742845169727,-783.59,0.00046575,120]
[356620536,1742845169767,-783.59,0.00046575,120]
[356620537,1742845169807,-783.59,0.00046575,120]
[356620538,1742845169847,-783.59,0.00046575,120]
[356620539,1742845169886,-783.68515516,0.00046575,120]
[356620540,1742845169925,-500.0,0.00046575,120]
[356620541,1742845169967,-500.0,0.00046575,120]
[356620542,1742845170007,-500.0,0.00046575,120]
[356620543,1742845170049,-638.94389378,0.00046575,120]
[356620544,1742845170091,-500.0,0.00046575,120]
[356620545,1742845170129,-500.0,0.00046575,120]
[356620546,1742845170172,-500.0,0.00046575,120]
[356620547,1742845170215,-500.0,0.00046575,120]
[356620548,1742845170256,-500.0,0.00046575,120]
[356620549,1742845170297,-500.0,0.00046575,120]
[356620550,1742845170452,-500.0,0.00046575,120]
[356620551,1742845170479,-535.55805805,0.00046575,120]
[356620552,1742845170505,-574.9928949,0.00046575,120]
[356620553,1742845170531,-504.29687918,0.00046575,120]
[356620554,1742845170557,-500.0,0.00046575,120]
[356620555,1742845170582,-1113.62649,0.00046575,120]
[356620556,1742845170607,-500.0,0.00046575,120]
[356620557,1742845170632,-500.0,0.00046575,120]
[356620558,1742845170658,-516.12730375,0.00046575,120]
[356620559,1742845170683,-500.0,0.00046575,120]
[356620560,1742845170709,-514.64439006,0.00046575,120]
[356620561,1742845170733,-509.89914263,0.00046575,120]
[356620562,1742845170760,-500.0,0.00046575,120]
[356620563,1742845170784,-520.40524021,0.00046575,120]
[356620564,1742845170809,-500.0,0.00046575,120]
[356620565,1742845170834,-512.3292773,0.00046575,120]
[356620566,1742845170859,-532.74688024,0.00046575,120]
[356620567,1742845170883,-500.0,0.00046575,120]
[356620568,1742845170907,-520.10703312,0.00046575,120]
[356620569,1742845170933,-500.0,0.00046575,120]
[356620570,1742845170958,-500.0,0.00046575,120]
[356620571,1742845170982,-500.0,0.00046575,120]
[356620572,1742845171008,-500.0,0.00046575,120]
[356620573,1742845171033,-500.0,0.00046575,120]
[356620574,1742845171058,-500.0,0.00046575,120]
[356620575,1742845171082,-513.31846639,0.00046575,120]
[356620576,1742845171107,-500.0,0.00046575,120]
[356620577,1742845171131,-500.0,0.00046575,120]
[356620578,1742845171155,-502.3374349,0.00046575,120]
[356620579,1742845171180,-500.0,0.00046575,120]
[356620580,1742845171204,-159.68,0.00046575,30]
[356620581,1742845171229,-46991.07,0.000466,120]
[356620582,1742845171254,-1681.18656371,0.00046797,120]
[356620583,1742845171279,-6141.27827209,0.000468,120]
[356620584,1742845171303,-500.0,0.00046849,120]
[356620585,1742845171332,-500.0,0.00046849,120]
[356620586,1742845171356,-500.0,0.00046849,120]
[356620587,1742845171383,-383.906034,0.00046849,120]
[356620588,1742845171410,-446.41846,0.00046849,120]
[356620589,1742845171436,-575.21691623,0.00046849,120]
[356620590,1742845171461,-523.86468141,0.00046849,120]
[356620591,1742845171486,-511.44348554,0.00046849,120]
[356620592,1742845171511,-506.83720037,0.00046849,120]
[356620593,1742845171538,-505.47964632,0.00046849,120]
[356620594,1742845171563,-500.0,0.00046849,120]
[356620595,1742845171589,-500.00789807,0.00046849,120]
[356620596,1742845171615,-504.4161283,0.00046849,120]
[356620597,1742845171640,-507.21144768,0.00046849,120]
[356620598,1742845171666,-445.75810751,0.00046849,120]
[356620599,1742845171691,-506.81838362,0.00046849,120]
[356620600,1742845171717,-541.53348708,0.00046849,120]
[356620601,1742845171742,-505.76848289,0.00046849,120]
[356620602,1742845171767,-500.0,0.00046849,120]
[356620603,1742845171883,-500.0,0.00046849,120]
[356620604,1742845171909,-500.0,0.00046849,120]
[356620605,1742845171936,-500.0,0.00046849,120]
[356620606,1742845171962,-500.0,0.00046849,120]
[356620607,1742845171988,-556.61864179,0.00046849,120]
[356620608,1742845172014,-504.65553108,0.00046849,120]
[356620609,1742845172039,-556.16283705,0.00046849,120]
[356620610,1742845172065,-515.20863228,0.00046849,120]
[356620611,1742845172091,-540.74708645,0.00046849,120]
[356620612,1742845172118,-506.97356865,0.00046849,120]
[356620613,1742845172144,-522.6283419,0.00046849,120]
[356620614,1742845172170,-506.01300348,0.00046849,120]
[356620615,1742845172196,-472.89959483,0.00046849,120]
[356620616,1742845172221,-529.72779094,0.00046849,120]
[356620617,1742845172247,-505.18558466,0.00046849,120]
[356620618,1742845172272,-500.0,0.00046849,120]
[356620619,1742845172299,-500.0,0.00046849,120]
[356620620,1742845172327,-525.87816864,0.00046849,120]
[356620621,1742845172353,-500.0,0.00046849,120]
[356620622,1742845172380,-500.0,0.00046849,120]
[356620623,1742845172407,-500.0,0.00046849,120]
[356620624,1742845172433,-539.90143216,0.00046849,120]
[356620625,1742845172459,-500.0,0.00046849,120]
[356620626,1742845172485,-517.43707317,0.00046849,120]
[356620627,1742845172513,-511.51689646,0.00046849,120]
[356620628,1742845172538,-500.0,0.00046849,120]
[356620629,1742845172564,-500.0,0.00046849,120]
[356620630,1742845172588,-500.0,0.00046849,120]
[356620631,1742845172613,-500.0,0.00046849,120]
[356620632,1742845172637,-506.49747372,0.00046849,120]
[356620633,1742845172663,-500.0,0.00046849,120]
[356620634,1742845172688,-500.0,0.00046849,120]
[356620635,1742845172713,-500.0,0.00046849,120]
[356620636,1742845172738,-163.67023895,0.00046849,120]
[356620637,1742845172764,-620.21348096,0.00046849,120]
[356620638,1742845172790,-494.05434119,0.00046849,120]
[356620639,1742845172814,-521.73762286,0.00046849,120]
[356620640,1742845172840,-561.8320403,0.00046849,120]
[356620641,1742845172865,-523.224442,0.00046849,120]
[356620642,1742845172889,-552.76263007,0.00046849,120]
[356620643,1742845172916,-501.06,0.00046849,120]
[356620644,1742845172942,-500.0,0.00046849,120]
[356620645,1742845172969,-517.75174636,0.00046849,120]
[356620646,1742845172996,-500.0,0.00046849,120]
[356620647,1742845173022,-500.0,0.00046849,120]
[356620648,1742845173047,-507.1906024,0.00046849,120]
[356620649,1742845173074,-500.0,0.00046849,120]
[356620650,1742845173100,-582.60771739,0.00046849,120]
[356620651,1742845173126,-500.0,0.00046849,120]
[356620652,1742845173151,-561.87242286,0.00046849,120]
[356620653,1742845173178,-514.74226842,0.00046849,120]
[356620654,1742845173285,-525.15691215,0.00046849,120]
[356620655,1742845173315,-500.0,0.00046849,120]
[356620656,1742845173342,-514.30210487,0.00046849,120]
[356620657,1742845173370,-507.07352317,0.00046849,120]
[356620658,1742845173396,-519.45564136,0.00046849,120]
[356620659,1742845173429,-500.0,0.00046849,120]
[356620660,1742845173456,-500.0,0.00046849,120]
[356620661,1742845173483,-500.0,0.00046849,120]
[356620662,1742845173512,-1231.79,0.00046849,120]
[356620663,1742845173539,-500.0,0.00046849,120]
[356620664,1742845173566,-500.0,0.00046849,120]
[356620665,1742845173593,-500.0,0.00046849,120]
[356620666,1742845173619,-500.0,0.00046849,120]
[356620667,1742845173646,-281.18884191,0.00046849,120]
[356620668,1742845173674,-500.0,0.00046849,120]
[356620669,1742845173701,-500.0,0.00046849,120]
[356620670,1742845173728,-500.0,0.00046849,120]
[356620671,1742845173754,-500.0,0.00046849,120]
[356620672,1742845173779,-523.11634711,0.00046849,120]
[356620673,1742845173808,-513.70055247,0.00046849,120]
[356620674,1742845173840,-491.97,0.00046849,120]
[356620675,1742845173866,-507.15030649,0.00046849,120]
[356620676,1742845173894,-500.0,0.00046849,120]
[356620677,1742845173921,-500.0,0.00046849,120]
[356620678,1742845173947,-500.0,0.00046849,120]
[356620679,1742845173975,-500.0,0.00046849,120]
[356620680,1742845174002,-500.0,0.00046849,120]
[356620681,1742845174028,-500.0,0.00046849,120]
[356620682,1742845174054,-500.0,0.00046849,120]
[356620683,1742845174080,-300.0,0.00046849,30]
[356620684,1742845174106,-500.0,0.00046849,120]
[356620685,1742845174131,-500.0,0.00046849,120]
[356620686,1742845174157,-500.0,0.00046849,120]
[356620687,1742845174184,-500.0,0.00046849,120]
[356620688,1742845174210,-250.45944924,0.00046849,120]
[356620689,1742845174236,-545.22248886,0.00046849,30]
[356620690,1742845174262,-500.0,0.00046849,120]
[356620691,1742845174289,-500.0,0.00046849,120]
[356620692,1742845174316,-521.7135213,0.00046849,120]
[356620693,1742845174345,-515.74842324,0.00046849,120]
[356620694,1742845174373,-514.16538689,0.00046849,120]
[356620695,1742845174400,-538.49374174,0.00046849,120]
[356620696,1742845174425,-543.42647934,0.00046849,120]
[356620697,1742845174454,-500.0,0.00046849,120]
[356620698,1742845174480,-500.0,0.00046849,120]
[356620699,1742845174508,-500.0,0.00046849,120]
[356620700,1742845174532,-500.0,0.00046849,120]
[356620701,1742845174559,-500.0,0.00046849,120]
[356620702,1742845174584,-500.0,0.00046849,120]
[356620703,1742845174608,-640.48581401,0.00046849,120]
[356620704,1742845174720,-267.2622857,0.00046849,120]
[356620705,1742845174746,-500.0,0.00046849,120]
[356620706,1742845174770,-532.00694891,0.00046849,120]
[356620707,1742845174794,-512.35211926,0.00046849,120]
[356620708,1742845174817,-532.10855296,0.00046849,120]
[356620709,1742845174841,-518.8065657,0.00046849,120]
[356620710,1742845174865,-500.0,0.00046849,120]
[356620711,1742845174890,-500.0,0.00046849,120]
[356620712,1742845174914,-500.0,0.00046849,120]
[356620713,1742845174938,-500.0,0.00046849,120]
[356620714,1742845174963,-517.09023203,0.00046849,120]
[356620715,1742845174988,-500.0,0.00046849,120]
[356620716,1742845175013,-500.0,0.00046849,120]
[356620717,1742845175038,-500.0,0.00046849,120]
[356620718,1742845175063,-500.0,0.00046849,120]
[356620719,1742845175087,-500.0,0.00046849,120]
[356620720,1742845175111,-506.39836147,0.00046849,120]
[356620721,1742845175134,-542.52111789,0.00046849,120]
[356620722,1742845175159,-612.32022299,0.00046849,120]
[356620723,1742845175193,-520.2468925,0.00046849,120]
[356620724,1742845175221,-500.0,0.00046849,120]
[356620725,1742845175247,-500.0,0.00046849,120]
[356620726,1742845175272,-500.0,0.00046849,120]
[356620727,1742845175297,-500.0,0.00046849,120]
[356620728,1742845175322,-500.0,0.00046849,120]
[356620729,1742845175351,-610.65267223,0.00046849,120]
[356620730,1742845175376,-500.0,0.00046849,120]
[356620731,1742845175402,-641.82362117,0.00046849,120]
[356620732,1742845175428,-504.52311983,0.00046849,120]
[356620733,1742845175453,-500.0,0.00046849,120]
[356620734,1742845175477,-500.0,0.00046849,120]
[356620735,1742845175503,-500.0,0.00046849,120]
[356620736,1742845175529,-500.0,0.00046849,120]
[356620737,1742845175553,-516.16759036,0.00046849,120]
[356620738,1742845175578,-500.0,0.00046849,120]
[356620739,1742845175603,-500.0,0.00046849,120]
[356620740,1742845175627,-500.0,0.00046849,120]
[356620741,1742845175652,-204.78494399,0.00046849,120]
[356620742,1742845175676,-524.3224194,0.00046849,120]
[356620743,1742845175701,-500.0,0.00046849,120]
[356620744,1742845175726,-500.0,0.00046849,120]
[356620745,1742845175751,-500.0,0.00046849,120]
[356620746,1742845175776,-500.0,0.00046849,120]
[356620747,1742845175806,-559.40878534,0.00046849,120]
[356620748,1742845175831,-500.0,0.00046849,120]
[356620749,1742845175856,-565.3825742,0.00046849,120]
[356620750,1742845175881,-500.0,0.00046849,120]
[356620751,1742845175906,-550.63128151,0.00046849,120]
[356620752,1742845176049,-500.0,0.00046849,120]
[356620753,1742845176074,-601.38106342,0.00046849,120]
[356620754,1742845176099,-512.12429595,0.00046849,120]
[356620755,1742845176127,-500.0,0.00046849,120]
[356620756,1742845176152,-500.0,0.00046849,120]
[356620757,1742845176177,-589.76420166,0.00046849,120]
[356620758,1742845176201,-515.14267901,0.00046849,120]
[356620759,1742845176226,-500.0,0.00046849,120]
[356620760,1742845176250,-500.0,0.00046849,120]
[356620761,1742845176275,-500.0,0.00046849,120]
[356620762,1742845176299,-500.0,0.00046849,120]
[356620763,1742845176324,-178.37838533,0.00046849,120]
[356620764,1742845176353,-500.0,0.00046849,120]
[356620765,1742845176379,-515.63225354,0.00046849,120]
[356620766,1742845176403,-500.0,0.00046849,120]
[356620767,1742845176428,-500.0,0.00046849,120]
[356620768,1742845176452,-500.0,0.00046849,120]
[356620769,1742845176479,-522.50518317,0.00046849,120]
[356620770,1742845176505,-606.42417116,0.00046849,120]
[356620771,1742845176529,-500.0,0.00046849,120]
[356620772,1742845176555,-500.0,0.00046849,120]
[356620773,1742845176579,-500.0,0.00046849,30]
[356620774,1742845176604,-500.0,0.00046849,120]
[356620775,1742845176628,-545.25676391,0.00046849,120]
[356620776,1742845176652,-522.3537633,0.00046849,120]
[356620777,1742845176678,-611.85416888,0.00046849,120]
[356620778,1742845176702,-1233.45,0.00046849,120]
[356620779,1742845176726,-500.0,0.00046849,120]
[356620780,1742845176754,-630.30299216,0.00046849,120]
[356620781,1742845176780,-523.98980681,0.00046849,120]
[356620782,1742845176805,-500.0,0.00046849,120]
[356620783,1742845176831,-549.21904128,0.00046849,120]
[356620784,1742845176855,-500.0,0.00046849,120]
[356620785,1742845176880,-530.3902342,0.00046849,120]
[356620786,1742845176905,-500.0,0.00046849,120]
[356620787,1742845176931,-539.99853833,0.00046849,120]
[356620788,1742845176955,-504.22675351,0.00046849,120]
[356620789,1742845176980,-500.0,0.00046849,120]
[356620790,1742845177005,-507.77062987,0.00046849,120]
[356620791,1742845177032,-550.77675891,0.00046849,120]
[356620792,1742845177057,-500.0,0.00046849,120]
[356620793,1742845177082,-502.21789022,0.00046849,120]
[356620794,1742845177106,-505.77148617,0.00046849,120]
[356620795,1742845177131,-500.0,0.00046849,120]
[356620796,1742845177155,-500.0,0.00046849,120]
[356620797,1742845177180,-527.62864652,0.00046849,120]
[356620798,1742845177281,-500.0,0.00046849,120]
[356620799,1742845177306,-500.0,0.00046849,120]
[356620800,1742845177334,-533.56166309,0.00046849,120]
[356620801,1742845177358,-500.0,0.00046849,120]
[356620802,1742845177383,-534.97178565,0.00046849,120]
[356620803,1742845177410,-500.0,0.00046849,120]
[356620804,1742845177436,-504.92093385,0.00046849,120]
[356620805,1742845177459,-500.0,0.00046849,120]
[356620806,1742845177483,-511.90248477,0.00046849,120]
[356620807,1742845177509,-572.14975158,0.00046849,120]
[356620808,1742845177532,-500.0,0.00046849,120]
[356620809,1742845177556,-504.67852799,0.00046849,120]
[356620810,1742845177582,-500.0,0.00046849,120]
[356620811,1742845177606,-510.73199161,0.00046849,120]
[356620812,1742845177631,-525.01662039,0.00046849,120]
[356620813,1742845177655,-519.69297514,0.00046849,120]
[356620814,1742845177680,-500.0,0.00046849,120]
[356620815,1742845177705,-500.0,0.00046849,120]
[356620816,1742845177729,-500.0,0.00046849,120]
[356620817,1742845177754,-500.0,0.00046849,120]
[356620818,1742845177778,-500.0,0.00046849,120]
[356620819,1742845177801,-1269.12,0.00046849,120]
[356620820,1742845177825,-599.20948709,0.00046849,120]
[356620821,1742845177850,-500.0,0.00046849,120]
[356620822,1742845177874,-500.0,0.00046849,120]
[356620823,1742845177898,-533.1761398,0.00046849,120]
[356620824,1742845177922,-515.36051181,0.00046849,120]
[356620825,1742845177947,-500.0,0.00046849,120]
[356620826,1742845177971,-500.0,0.00046849,120]
[356620827,1742845177995,-526.21,0.00046849,120]
[356620828,1742845178022,-521.12265833,0.00046849,120]
[356620829,1742845178046,-551.79186611,0.00046849,120]
[356620830,1742845178072,-500.0,0.00046849,120]
[356620831,1742845178097,-535.77978293,0.00046849,120]
[356620832,1742845178121,-510.20032983,0.00046849,120]
[356620833,1742845178145,-500.0,0.00046849,120]
[356620834,1742845178170,-524.06909788,0.00046849,120]
[356620835,1742845178194,-533.01314536,0.00046849,120]
[356620836,1742845178218,-500.0,0.00046849,120]
[356620837,1742845178243,-516.28234716,0.00046849,120]
[356620838,1742845178268,-500.0,0.00046849,120]
[356620839,1742845178292,-562.3402572,0.00046849,120]
[356620840,1742845178318,-522.86194843,0.00046849,120]
[356620841,1742845178346,-544.4782602,0.00046849,120]
[356620842,1742845178371,-511.7506532,0.00046849,120]
[356620843,1742845178471,-558.04414355,0.00046849,120]
[356620844,1742845178497,-570.8623462,0.00046849,120]
[356620845,1742845178522,-518.44262081,0.00046849,120]
[356620846,1742845178546,-646.00570428,0.00046849,120]
[356620847,1742845178571,-500.0,0.00046849,120]
[356620848,1742845178597,-567.01836086,0.00046849,120]
[356620849,1742845178622,-528.46072241,0.00046849,120]
[356620850,1742845178647,-524.18750543,0.00046849,120]
[356620851,1742845178672,-415.30214866,0.00046849,120]
[356620852,1742845178696,-516.37932166,0.00046849,120]
[356620853,1742845178720,-500.0,0.00046849,120]
[356620854,1742845178746,-527.55461185,0.00046849,120]
[356620855,1742845178770,-500.0,0.00046849,120]
[356620856,1742845178796,-500.0,0.00046849,120]
[356620857,1742845178822,-514.65140109,0.00046849,120]
[356620858,1742845178846,-500.0,0.00046849,120]
[356620859,1742845178872,-500.0,0.00046849,120]
[356620860,1742845178897,-500.0,0.00046849,120]
[356620861,1742845178922,-522.11047175,0.00046849,120]
[356620862,1742845178946,-500.0,0.00046849,120]
[356620863,1742845178971,-500.0,0.00046849,120]
[356620864,1742845178999,-197.677449,0.00046849,120]
[356620865,1742845179024,-503.60142321,0.00046849,120]
[356620866,1742845179051,-500.0,0.00046849,120]
[356620867,1742845179076,-500.0,0.00046849,120]
[356620868,1742845179100,-509.7283878,0.00046849,120]
[356620869,1742845179125,-500.0,0.00046849,120]
[356620870,1742845179150,-500.0,0.00046849,120]
[356620871,1742845179174,-556.62726044,0.00046849,120]
[356620872,1742845179198,-513.29217151,0.00046849,120]
[356620873,1742845179222,-512.44098004,0.00046849,120]
[356620874,1742845179247,-500.0,0.00046849,120]
[356620875,1742845179271,-558.00621194,0.00046849,120]
[356620876,1742845179295,-500.0,0.00046849,120]
[356620877,1742845179320,-516.46569057,0.00046849,120]
[356620878,1742845179348,-500.0,0.00046849,120]
[356620879,1742845179373,-2000.0,0.00046849,30]
[356620880,1742845179401,-605.37034325,0.00046849,120]
[356620881,1742845179429,-516.92520231,0.00046849,120]
[356620882,1742845179455,-517.54768426,0.00046849,120]
[356620883,1742845179480,-531.01094763,0.00046849,120]
[356620884,1742845179505,-500.0,0.00046849,120]
[356620885,1742845179529,-518.04165026,0.00046849,120]
[356620886,1742845179641,-517.38142141,0.00046849,120]
[356620887,1742845179666,-507.96057163,0.00046849,120]
[356620888,1742845179690,-1000.0,0.00046849,120]
[356620889,1742845179714,-500.0,0.00046849,120]
[356620890,1742845179738,-500.0,0.00046849,120]
[356620891,1742845179762,-570.13166099,0.00046849,120]
[356620892,1742845179786,-500.0,0.00046849,120]
[356620893,1742845179812,-500.0,0.00046849,120]
[356620894,1742845179836,-593.02466261,0.00046849,120]
[356620895,1742845179861,-500.0,0.00046849,120]
[356620896,1742845179886,-510.33484206,0.00046849,120]
[356620897,1742845179910,-500.0,0.00046849,120]
[356620898,1742845179935,-500.0,0.00046849,120]
[356620899,1742845179960,-500.0,0.00046849,120]
[356620900,1742845179984,-500.0,0.00046849,120]
[356620901,1742845180010,-526.78881249,0.00046849,120]
[356620902,1742845180035,-500.0,0.00046849,120]
[356620903,1742845180060,-510.60016993,0.00046849,120]
[356620904,1742845180085,-518.37554178,0.00046849,120]
[356620905,1742845180110,-500.0,0.00046849,120]
[356620906,1742845180136,-500.61635394,0.00046849,120]
[356620907,1742845180160,-500.0,0.00046849,120]
[356620908,1742845180185,-532.58497312,0.00046849,120]
[356620909,1742845180209,-878.61582919,0.00046849,120]
[356620910,1742845180234,-518.50672091,0.00046849,120]
[356620911,1742845180259,-582.56032241,0.00046849,120]
[356620912,1742845180284,-500.0,0.00046849,120]
[356620913,1742845180308,-521.46128713,0.00046849,120]
[356620914,1742845180337,-500.0,0.00046849,120]
[356620915,1742845180360,-500.0,0.00046849,120]
[356620916,1742845180386,-500.0,0.00046849,120]
[356620917,1742845180411,-520.50069652,0.00046849,120]
[356620918,1742845180435,-500.0,0.00046849,120]
[356620919,1742845180460,-500.0,0.00046849,120]
[356620920,1742845180485,-500.0,0.00046849,120]
[356620921,1742845180509,-500.0,0.00046849,120]
[356620922,1742845180534,-500.0,0.00046849,120]
[356620923,1742845180558,-500.0,0.00046849,120]
[356620924,1742845180582,-465.27538123,0.00046849,120]
[356620925,1742845180606,-500.0,0.00046849,120]
[356620926,1742845180630,-276.5661086,0.00046849,120]
[356620927,1742845180654,-506.61446138,0.00046849,120]
[356620928,1742845180755,-500.0,0.00046849,120]
[356620929,1742845180780,-523.73875396,0.00046849,120]
[356620930,1742845180804,-521.53554743,0.00046849,120]
[356620931,1742845180828,-500.0,0.00046849,120]
[356620932,1742845180853,-514.35215534,0.00046849,120]
[356620933,1742845180879,-601.49221837,0.00046849,120]
[356620934,1742845180905,-447.13001461,0.00046849,120]
[356620935,1742845180930,-500.0,0.00046849,120]
[356620936,1742845180956,-501.70259198,0.00046849,120]
[356620937,1742845180983,-500.0,0.00046849,120]
[356620938,1742845181010,-500.0,0.00046849,120]
[356620939,1742845181037,-511.15067262,0.00046849,120]
[356620940,1742845181064,-500.0,0.00046849,120]
[356620941,1742845181090,-511.30929185,0.00046849,120]
[356620942,1742845181114,-514.5085632,0.00046849,120]
[356620943,1742845181139,-523.00348312,0.00046849,120]
[356620944,1742845181163,-508.25673143,0.00046849,120]
[356620945,1742845181187,-510.27257451,0.00046849,120]
[356620946,1742845181211,-518.70488736,0.00046849,120]
[356620947,1742845181237,-500.0,0.00046849,120]
[356620948,1742845181288,-500.0,0.00046849,120]
[356620949,1742845181338,-511.5353242,0.00046849,120]
[356620950,1742845181390,-500.0,0.00046849,120]
[356620951,1742845181437,-366.25993702,0.00046849,120]
[356620952,1742845181483,-500.0,0.00046849,120]
[356620953,1742845181526,-529.37123318,0.00046849,120]
[356620954,1742845181567,-503.86409817,0.00046849,120]
[356620955,1742845181608,-351.6842025,0.00046849,120]
[356620956,1742845181648,-618.94747549,0.00046849,120]
[356620957,1742845181687,-561.82378653,0.00046849,120]
[356620958,1742845181726,-520.92197529,0.00046849,120]
[356620959,1742845181766,-511.93274868,0.00046849,120]
[356620960,1742845181804,-500.0,0.00046849,120]
[356620961,1742845181842,-500.0,0.00046849,120]
[356620962,1742845181883,-183.20666627,0.00046849,120]
[356620963,1742845181925,-506.5906387,0.00046849,120]
[356620964,1742845181968,-500.0,0.00046849,120]
[356620965,1742845182008,-500.0,0.00046849,120]
[356620966,1742845182048,-216.1580135,0.00046849,120]
[356620967,1742845182090,-500.0,0.00046849,120]
[356620968,1742845182238,-601.09568333,0.00046849,120]
[356620969,1742845182263,-500.0,0.00046849,120]